bitfinex/quotes_SOLUSD_20250112
["timestamp","ask_amount","ask_price","bid_price","bid_amount"]
[1736664009286,20.0,186.98,186.97,10.0]
[1736664011583,20.0,186.98,186.97,5.0]
[1736664012406,20.0,186.98,186.96,10.0]
[1736664012825,20.0,186.98,186.96,5.0]
[1736664013513,20.0,186.98,186.95,6.6129]
[1736664013514,20.0,186.98,186.95,1.6129]
[1736664013886,20.0,186.98,186.96,5.0]
[1736664021014,20.0,186.98,186.95,5.0]
[1736664023522,20.0,186.98,186.96,5.0]
[1736664025005,20.0,186.98,186.95,5.0]
[1736664026925,20.0,186.98,186.96,5.0]
[1736664028294,20.0,186.98,186.94,5.0]
[1736664028498,20.0,186.98,186.96,5.0]
[1736664029736,20.0,187.01,186.97,6.5187]
[1736664029901,20.0,187.01,186.98,5.0]
[1736664030223,20.0,187.01,186.98,10.0]
[1736664032729,81.9,187.04,187.0,5.0]
[1736664033034,81.9,187.08,187.03,10.0]
[1736664033627,20.0,187.05,187.03,10.0]
[1736664036926,20.0,187.05,187.04,5.0]
[1736664037933,38.53588213,187.09,187.04,5.0]
[1736664038139,20.0,187.06,187.04,10.0]
[1736664038627,20.0,187.06,187.05,5.0]
[1736664041840,20.0,187.06,187.05,10.0]
[1736664042217,34.07588213,187.09,187.06,5.0]
[1736664042518,34.07588213,187.09,187.08,5.0]
[1736664043038,34.07588213,187.09,187.07,5.0]
[1736664043239,34.07588213,187.09,187.07,10.0]
[1736664043441,34.07588213,187.09,187.08,5.0]
[1736664044210,34.07588213,187.09,187.08,10.0]
[1736664046842,34.07588213,187.09,187.08,5.0]
[1736664047149,34.07588213,187.09,187.08,10.0]
[1736664048747,34.07588213,187.09,187.07,10.0]
[1736664048917,20.0,187.07,187.06,5.0]
[1736664049117,20.0,187.06,187.03,5.0]
[1736664050566,20.0,187.08,187.03,5.0]
[1736664050844,20.0,187.08,187.03,10.0]
[1736664051349,20.0,187.08,187.04,5.0]
[1736664061456,20.0,187.08,187.02,5.0]
[1736664064448,20.0,187.08,187.0,6.546]
[1736664064449,20.0,187.08,187.01,5.0]
[1736664064652,20.0,187.07,187.01,5.0]
[1736664065157,20.0,187.07,187.0,6.546]
[1736664065355,20.0,187.07,186.96,0.80194172]
[1736664065356,101.9,187.06,186.97,10.0]
[1736664065531,4.46,187.05,186.97,5.0]
[1736664065727,4.46,187.05,186.96,5.0]
[1736664065947,20.0,187.01,186.95,6.6185]
[1736664067136,20.0,187.01,186.96,5.0]
[1736664075063,20.0,187.01,186.95,6.6185]
[1736664075264,20.0,187.01,186.96,5.0]
[1736664075563,20.0,187.0,186.96,5.0]
[1736664075967,20.0,187.0,186.95,6.6185]
[1736664076151,20.0,187.0,186.95,5.0]
[1736664076460,20.0,187.0,186.94,10.0]
[1736664076762,20.0,187.0,186.95,5.0]
[1736664076964,20.0,187.0,186.96,5.0]
[1736664081572,20.0,186.99,186.96,5.0]
[1736664083850,20.0,186.99,186.94,10.0]
[1736664084051,20.0,186.99,186.96,5.0]
[1736664088694,20.0,186.99,186.94,5.0]
[1736664089487,20.0,186.99,186.95,5.0]
[1736664093180,20.0,186.98,186.95,5.0]
[1736664093366,20.0,186.98,186.94,5.0]
[1736664093565,20.0,186.97,186.92,5.0]
[1736664093872,20.0,186.97,186.93,5.0]
[1736664096585,20.0,186.97,186.94,5.0]
[1736664097361,20.0,186.97,186.93,5.0]
[1736664099494,20.0,186.97,186.93,10.0]
[1736664099704,20.0,186.97,186.94,10.0]
[1736664099868,81.9,187.0,186.96,5.0]
[1736664100490,20.0,186.97,186.96,5.0]
[1736664105199,20.0,186.97,186.96,10.0]
[1736664105373,8.0223,187.06,186.98,5.0]
[1736664105374,20.0,187.02,186.98,5.0]
[1736664106972,20.0,187.02,186.97,10.0]
[1736664107796,20.0,187.02,186.98,5.0]
[1736664108483,20.0,187.0,186.97,10.0]
[1736664108673,20.0,187.0,186.98,5.0]
[1736664109999,20.0,187.0,186.97,10.0]
[1736664110377,20.0,187.0,186.97,5.0]
[1736664112592,20.0,187.0,186.97,10.0]
[1736664112897,20.0,187.0,186.98,5.0]
[1736664114387,20.0,187.0,186.97,10.0]
[1736664114601,20.0,187.0,186.93,23.776884]
[1736664114805,20.0,187.0,186.94,0.80207464]
[1736664117976,20.0,187.0,186.95,23.776884]
[1736664118177,4.46,187.05,186.97,23.776884]
[1736664118376,4.46,187.05,186.98,0.80193633]
[1736664118602,24.46,187.06,186.98,0.80193633]
[1736664118901,20.0,187.06,186.98,0.80193633]
[1736664119203,24.46,187.06,186.98,0.80193633]
[1736664121380,24.46,187.06,186.97,24.57882518]
[1736664121723,20.0,187.02,186.94,106.376884]
[1736664121898,20.0,187.02,186.95,0.80195835]
[1736664123789,20.0,187.02,186.97,23.776884]
[1736664124104,20.0,187.06,186.99,23.776884]
[1736664127390,20.0,187.06,186.97,0.80187973]
[1736664129395,20.0,187.06,186.96,84.1337]
[1736664129396,20.0,187.02,186.96,1.5337]
[1736664129597,20.0,187.01,186.93,0.80198529]
[1736664129903,20.0,187.01,186.92,1.5337]
[1736664130203,20.0,186.98,186.92,1.5337]
[1736664130380,20.0,186.98,186.88,0.8021904]
[1736664130581,20.0,186.98,186.89,23.776884]
[1736664131584,4.46,186.97,186.89,23.776884]
[1736664133095,4.46,186.97,186.9,0.80229008]
[1736664135303,4.46,186.97,186.89,24.57914055]
[1736664135483,4.46,186.97,186.88,0.80229397]
[1736664135682,4.46,186.97,186.87,1.5337]
[1736664136386,4.46,186.97,186.88,0.8023787]
[1736664136786,4.46,186.97,186.89,23.776884]
[1736664136991,4.46,186.97,186.9,0.80224495]
[1736664141486,24.46,186.97,186.9,0.80224495]
[1736664149706,24.46,186.97,186.88,0.80224696]
[1736664152427,20.0,186.93,186.88,0.80224696]
[1736664159526,20.0,186.93,186.85,23.776884]
[1736664159731,20.0,186.93,186.86,0.80237737]
[1736664160717,20.0,186.93,186.88,23.776884]
[1736664161125,20.0,186.93,186.86,23.776884]
[1736664161327,20.0,186.93,186.86,24.57925627]
[1736664162131,20.0,186.89,186.82,84.1504]
[1736664162330,20.0,186.89,186.83,0.80252397]
[1736664164434,20.0,186.89,186.82,82.6]
[1736664164634,20.0,186.88,186.82,82.6]
[1736664165513,20.0,186.87,186.81,23.776884]
[1736664165724,20.0,186.87,186.82,0.80261944]
[1736664167129,20.0,186.86,186.81,23.776884]
[1736664167331,20.0,186.86,186.82,0.80267568]
[1736664171147,20.0,186.86,186.81,24.57950328]
[1736664171550,20.0,186.86,186.79,82.6]
[1736664171716,20.0,186.86,186.77,0.80273251]
[1736664172034,20.0,186.86,186.75,23.776884]
[1736664172335,26.1402,186.85,186.76,0.80281903]
[1736664172538,26.1402,186.85,186.75,23.776884]
[1736664172725,26.1402,186.85,186.74,0.80288183]
[1736664173238,26.1402,186.85,186.75,23.776884]
[1736664173426,26.1402,186.85,186.76,0.80285906]
[1736664174920,26.1402,186.85,186.75,23.776884]
[1736664176046,26.1402,186.85,186.76,0.80290854]
[1736664177422,20.0,186.8,186.77,23.776884]
[1736664177832,20.0,186.8,186.77,24.57968225]
[1736664178945,20.0,186.8,186.75,23.776884]
[1736664179147,20.0,186.8,186.77,23.776884]
[1736664183437,20.0,186.82,186.75,23.776884]
[1736664183634,20.0,186.82,186.77,23.776884]
[1736664183838,20.0,186.82,186.78,0.8027878]
[1736664189250,81.9,186.89,186.79,23.776884]
[1736664189442,86.36,186.89,186.81,23.776884]
[1736664189633,20.0,186.86,186.82,0.80261716]
[1736664190533,20.0,186.86,186.8,23.776884]
[1736664190733,20.0,186.86,186.81,0.80267464]
[1736664191127,20.0,186.86,186.8,0.80265703]
[1736664195447,20.0,186.86,186.81,23.776884]
[1736664195651,20.0,186.86,186.83,23.776884]
[1736664199469,8.92971867,186.84,186.83,23.776884]
[1736664217585,44.64859335,186.84,186.8,82.6]
[1736664217789,8.92971867,186.81,186.79,0.80271129]
[1736664217989,20.0,186.86,186.8,23.776884]
[1736664218291,20.0,186.86,186.79,0.80271129]
[1736664218688,20.0,186.86,186.77,23.776884]
[1736664218889,8.92971867,186.8,186.79,23.776884]
[1736664219285,8.92971867,186.81,186.79,23.776884]
[1736664219596,8.92971867,186.81,186.8,24.57958028]
[1736664224598,20.0,186.86,186.8,107.17958028]
[1736664224792,8.92971867,186.84,186.81,23.776884]
[1736664224969,8.92971867,186.84,186.82,0.80256439]
[1736664227195,8.92971867,186.83,186.82,24.57944839]
[1736664227372,8.92971867,186.84,186.82,24.57944839]
[1736664233687,8.92971867,186.83,186.82,24.57944839]
[1736664233890,8.92971867,186.84,186.82,24.57944839]
[1736664234799,20.0,186.87,186.83,23.776884]
[1736664234983,8.92971867,186.86,186.84,0.80252761]
[1736664238089,8.92971867,186.85,186.84,23.776884]
[1736664238489,8.92971867,186.85,186.82,82.6]
[1736664238704,8.92971867,186.83,186.8,0.80262614]
[1736664238906,81.9,186.9,186.8,0.80262614]
[1736664238907,8.92971867,186.82,186.8,0.80262614]
[1736664239503,8.92971867,186.82,186.81,23.776884]
[1736664239803,8.92971867,186.82,186.8,0.80262614]
[1736664239987,8.92971867,186.81,186.79,82.6]
[1736664240191,8.92971867,186.8,186.79,106.376884]
[1736664242902,8.92971867,186.8,186.79,82.6]
[1736664243590,8.92971867,186.8,186.76,1.5933]
[1736664243780,8.92971867,186.77,186.76,2.39618046]
[1736664244509,8.92971867,186.77,186.76,26.17306446]
[1736664244887,8.92971867,186.77,186.76,25.370184]
[1736664245708,8.92971867,186.77,186.74,82.6]
[1736664245882,8.92971867,186.77,186.74,83.40293555]
[1736664246090,8.92971867,186.76,186.75,23.776884]
[1736664246484,8.92971867,186.77,186.75,24.57981072]
[1736664249280,8.92971867,186.78,186.75,24.57981072]
[1736664254510,1.6229,186.84,186.75,107.17981072]
[1736664254703,8.92971867,186.79,186.75,106.376884]
[1736664254908,8.92971867,186.79,186.77,23.776884]
[1736664258819,8.92971867,186.79,186.77,24.5797087]
[1736664260203,20.0,186.81,186.76,82.6]
[1736664260407,8.92971867,186.77,186.76,82.6]
[1736664260608,8.92971867,186.77,186.76,106.376884]
[1736664264021,8.92971867,186.77,186.76,82.6]
[1736664264221,8.92971867,186.77,186.74,23.776884]
[1736664266026,8.92971867,186.77,186.74,24.57986022]
[1736664266227,8.92971867,186.75,186.74,24.57986022]
[1736664266395,8.92971867,186.75,186.74,23.776884]
[1736664267918,8.92971867,186.76,186.74,23.776884]
[1736664268119,8.92971867,186.77,186.74,24.57985297]
[1736664268911,8.92971867,186.78,186.74,24.57985297]
[1736664269111,20.0,186.81,186.74,24.57985297]
[1736664269411,8.92971867,186.78,186.74,24.57985297]
[1736664273228,8.92971867,186.78,186.74,107.17985297]
[1736664273426,8.92971867,186.78,186.74,106.376884]
[1736664273608,8.92971867,186.8,186.76,23.776884]
[1736664273812,28.92971867,186.81,186.76,23.776884]
[1736664274147,8.92971867,186.81,186.78,23.776884]
[1736664274730,8.92971867,186.8,186.78,23.776884]
[1736664281834,8.92971867,186.79,186.78,23.776884]
[1736664284741,8.92971867,186.79,186.77,23.776884]
[1736664290147,8.92971867,186.83,186.77,252.54975192]
[1736664290322,8.92971867,186.83,186.77,256.74690267]
[1736664291427,8.92971867,186.83,186.79,23.776884]
[1736664293546,8.92971867,186.83,186.81,23.776884]
[1736664294045,88.2786,186.91,186.81,23.776884]
[1736664294339,8.92971867,186.85,186.83,23.776884]
[1736664295447,8.92971867,186.85,186.81,24.57950136]
[1736664295745,8.92971867,186.85,186.82,23.776884]
[1736664296742,8.92971867,186.84,186.81,23.776884]
[1736664300146,8.92971867,186.84,186.81,106.376884]
[1736664300343,20.0,186.88,186.81,106.376884]
[1736664300645,8.92971867,186.85,186.81,106.376884]
[1736664300946,8.92971867,186.84,186.81,106.376884]
[1736664305153,8.92971867,186.82,186.81,106.376884]
[1736664305324,8.92971867,186.82,186.81,82.6]
[1736664306253,8.92971867,186.82,186.75,8.42394388]
[1736664306254,8.92971867,186.82,186.75,91.02394388]
[1736664306431,8.92971867,186.77,186.76,23.776884]
[1736664307354,8.92971867,186.77,186.75,82.6]
[1736664307535,8.92971867,186.77,186.76,23.776884]
[1736664309162,6.126,186.85,186.76,23.776884]
[1736664309464,8.92971867,186.84,186.78,8.92971867]
[1736664309655,6.126,186.9,186.78,8.92971867]
[1736664309656,8.92971867,186.83,186.8,23.776884]
[1736664309861,8.92971867,186.82,186.8,23.776884]
[1736664313033,8.92971867,186.81,186.8,23.776884]
[1736664315034,8.92971867,186.82,186.8,23.776884]
[1736664315235,20.0,186.86,186.8,23.776884]
[1736664315431,8.92971867,186.85,186.8,108.84433459]
[1736664315636,8.92971867,186.85,186.8,113.041584]
[1736664316355,8.92971867,186.85,186.8,108.041584]
[1736664316561,8.92971867,186.84,186.8,108.041584]
[1736664318860,8.92971867,186.84,186.8,113.041584]
[1736664319368,6.126,186.9,186.82,23.776884]
[1736664319567,8.92971867,186.85,186.82,23.776884]
[1736664324865,1.6104,186.92,186.82,107.17952453]
[1736664325066,35.71887468,186.93,186.82,107.17952453]
[1736664325067,8.92971867,186.88,186.84,106.376884]
[1736664327345,8.92971867,186.88,186.86,23.776884]
[1736664328468,88.5417,186.95,186.86,23.776884]
[1736664328654,8.92971867,186.9,186.86,23.776884]
[1736664329273,8.92971867,186.9,186.88,23.776884]
[1736664329571,6.6417,186.95,186.87,106.376884]
[1736664329775,8.92971867,186.91,186.87,106.376884]
[1736664336361,8.92971867,186.9,186.87,106.376884]
[1736664336674,8.92971867,186.88,186.87,106.376884]
[1736664336848,8.92971867,186.88,186.87,82.6]
[1736664337254,20.0,186.9,186.85,23.776884]
[1736664337471,8.92971867,186.86,186.85,23.776884]
[1736664338275,8.92971867,186.86,186.84,82.6]
[1736664338478,8.92971867,186.85,186.81,82.6]
[1736664338655,8.92971867,186.82,186.77,91.02394388]
[1736664338855,8.92971867,186.79,186.78,23.776884]
[1736664339078,8.92971867,186.8,186.78,23.776884]
[1736664341373,8.92971867,186.8,186.77,82.6]
[1736664341766,8.92971867,186.8,186.78,23.776884]
[1736664342558,8.92971867,186.79,186.78,23.776884]
[1736664343760,8.92971867,186.8,186.78,23.776884]
[1736664346882,8.92971867,186.79,186.78,23.776884]
[1736664347279,8.92971867,186.79,186.77,82.6]
[1736664347469,8.92971867,186.78,186.76,1.6575]
[1736664349681,8.92971867,186.77,186.75,82.6]
[1736664349865,8.92971867,186.76,186.72,82.6]
[1736664350371,8.92971867,186.76,186.73,23.776884]
[1736664351663,8.92971867,186.74,186.71,1.5692]
[1736664351863,8.92971867,186.73,186.7,82.6]
[1736664352162,8.92971867,186.73,186.71,23.776884]
[1736664352367,8.92971867,186.73,186.7,82.6]
[1736664352960,8.92971867,186.73,186.71,23.776884]
[1736664355288,8.92971867,186.72,186.7,82.6]
[1736664355499,8.92971867,186.71,186.7,82.6]
[1736664355800,8.92971867,186.71,186.7,106.376884]
[1736664356298,8.92971867,186.71,186.7,23.776884]
[1736664356717,8.92971867,186.71,186.67,84.1692]
[1736664357030,8.92971867,186.7,186.67,84.1692]
[1736664357581,8.92971867,186.7,186.68,23.776884]
[1736664359907,8.92971867,186.7,186.66,23.776884]
[1736664360811,8.92971867,186.69,186.66,106.376884]
[1736664361404,8.92971867,186.7,186.66,106.376884]
[1736664361605,8.92971867,186.71,186.66,111.376884]
[1736664361994,8.92971867,186.7,186.66,106.376884]
[1736664365418,8.92971867,186.7,186.66,111.376884]
[1736664365616,8.92971867,186.7,186.66,106.376884]
[1736664366316,8.92971867,186.71,186.66,106.376884]
[1736664366723,8.92971867,186.71,186.66,111.376884]
[1736664367621,8.92971867,186.71,186.66,106.376884]
[1736664367923,8.92971867,186.71,186.66,111.376884]
[1736664368924,8.92971867,186.71,186.66,106.376884]
[1736664369120,8.92971867,186.71,186.66,111.376884]
[1736664369326,8.92971867,186.71,186.66,106.376884]
[1736664370020,8.92971867,186.7,186.66,106.376884]
[1736664370223,35.71887468,186.75,186.66,106.376884]
[1736664370434,8.92971867,186.72,186.68,23.776884]
[1736664370924,8.92971867,186.73,186.68,23.776884]
[1736664371105,8.92971867,186.72,186.68,23.776884]
[1736664371630,8.92971867,186.71,186.67,23.776884]
[1736664373025,8.92971867,186.7,186.67,23.776884]
[1736664373230,8.92971867,186.68,186.66,82.6]
[1736664375026,8.92971867,186.68,186.65,23.776884]
[1736664377507,101.9,186.74,186.65,23.776884]
[1736664377713,8.92971867,186.69,186.65,23.776884]
[1736664377931,101.9,186.74,186.65,23.776884]
[1736664377932,8.92971867,186.68,186.65,23.776884]
[1736664386836,8.92971867,186.67,186.65,23.776884]
[1736664387635,8.92971867,186.66,186.62,84.14]
[1736664387842,8.92971867,186.65,186.62,84.14]
[1736664388541,8.92971867,186.65,186.63,23.776884]
[1736664388728,8.92971867,186.66,186.63,23.776884]
[1736664390926,8.92971867,186.67,186.63,23.776884]
[1736664392527,81.9,186.73,186.63,121.11010407]
[1736664392734,8.92971867,186.69,186.63,120.30660267]
[1736664392932,8.92971867,186.69,186.65,23.776884]
[1736664393126,6.498,186.75,186.65,106.376884]
[1736664393321,8.92971867,186.7,186.65,106.376884]
[1736664400755,8.92971867,186.69,186.65,106.376884]
[1736664402056,8.92971867,186.72,186.67,23.776884]
[1736664402940,8.92971867,186.72,186.69,23.776884]
[1736664404954,8.92971867,186.71,186.69,23.776884]
[1736664415861,8.92971867,186.7,186.68,82.6]
[1736664416067,8.92971867,186.69,186.68,82.6]
[1736664419957,8.92971867,186.69,186.66,23.776884]
[1736664420158,8.92971867,186.68,186.66,23.776884]
[1736664421375,8.92971867,186.68,186.65,82.6]
[1736664421376,8.92971867,186.67,186.62,84.14]
[1736664421585,8.92971867,186.66,186.62,84.14]
[1736664421769,8.92971867,186.66,186.63,23.776884]
[1736664424871,8.92971867,186.68,186.63,107.1803674]
[1736664425068,8.92971867,186.69,186.63,106.376884]
[1736664425278,8.92971867,186.69,186.65,23.776884]
[1736664425863,8.92971867,186.7,186.65,23.776884]
[1736664428889,8.92971867,186.7,186.65,106.376884]
[1736664429768,8.92971867,186.69,186.65,106.376884]
[1736664430465,8.92971867,186.7,186.65,106.376884]
[1736664438496,81.9,186.77,186.67,106.376884]
[1736664438801,8.92971867,186.72,186.67,106.376884]
[1736664441597,8.92971867,186.71,186.67,106.376884]
[1736664444081,8.92971867,186.7,186.67,106.376884]
[1736664454121,8.92971867,186.71,186.67,106.376884]
[1736664459436,8.92971867,186.7,186.67,106.376884]
[1736664461329,8.92971867,186.71,186.67,106.376884]
[1736664464816,8.92971867,186.7,186.67,82.6]
[1736664468233,8.92971867,186.71,186.67,82.6]
[1736664468534,8.92971867,186.72,186.67,82.6]
[1736664471242,8.92971867,186.71,186.67,82.6]
[1736664471625,8.92971867,186.71,186.68,23.776884]
[1736664473037,8.92971867,186.72,186.68,23.776884]
[1736664478953,8.92971867,186.71,186.68,23.776884]
[1736664484343,8.92971867,186.72,186.68,23.776884]
[1736664484930,28.92971867,186.73,186.68,23.776884]
[1736664485150,3.74004042,186.78,186.68,106.376884]
[1736664485353,8.92971867,186.74,186.68,106.376884]
[1736664486553,90.31269377,186.81,186.7,37.70660267]
[1736664486761,8.92971867,186.76,186.72,23.776884]
[1736664489260,8.92971867,186.75,186.72,23.776884]
[1736664491865,8.92971867,186.73,186.72,82.6]
[1736664497669,8.92971867,186.73,186.68,23.776884]
[1736664497848,8.92971867,186.71,186.68,106.376884]
[1736664501475,8.92971867,186.7,186.68,106.376884]
[1736664502054,8.92971867,186.69,186.67,1.5924]
[1736664504391,8.92971867,186.68,186.65,82.6]
[1736664504589,8.92971867,186.66,186.65,82.6]
[1736664505373,8.51556205,186.66,186.65,82.6]
[1736664506177,8.51556205,186.66,186.63,1.628]
[1736664506372,8.92971867,186.65,186.63,1.628]
[1736664506976,8.92971867,186.65,186.61,23.776884]
[1736664507757,8.92971867,186.64,186.61,106.376884]
[1736664510356,8.92971867,186.63,186.61,106.376884]
[1736664513865,8.92971867,186.63,186.61,82.6]
[1736664514060,8.92971867,186.62,186.61,82.6]
[1736664515770,8.92971867,186.62,186.59,82.6]
[1736664515975,8.92971867,186.62,186.58,1.628]
[1736664516381,8.92971867,186.61,186.58,1.628]
[1736664517392,8.92971867,186.61,186.58,82.6]
[1736664517791,8.92971867,186.6,186.58,82.6]
[1736664519786,37.22077468,186.66,186.55,217.5]
[1736664519787,8.92971867,186.59,186.55,217.5]
[1736664519974,8.92971867,186.58,186.55,82.6]
[1736664522671,8.92971867,186.58,186.56,23.776884]
[1736664523802,20.0,186.63,186.56,116.11047141]
[1736664523985,20.0,186.63,186.56,115.30660267]
[1736664524183,8.92971867,186.62,186.56,115.30660267]
[1736664527086,8.92971867,186.61,186.56,115.30660267]
[1736664527287,8.92971867,186.61,186.56,106.376884]
[1736664527990,8.92971867,186.6,186.56,106.376884]
[1736664528187,8.92971867,186.58,186.56,82.6]
[1736664530814,8.92971867,186.57,186.56,106.376884]
[1736664534602,8.92971867,186.57,186.56,82.6]
[1736664534990,8.92971867,186.57,186.53,84.228]
[1736664535195,8.92971867,186.56,186.53,84.228]
[1736664536006,8.92971867,186.57,186.54,23.776884]
[1736664537814,8.92971867,186.58,186.54,106.376884]
[1736664540388,1.6242,186.64,186.54,106.376884]
[1736664540389,20.0,186.62,186.54,106.376884]
[1736664540596,8.92971867,186.58,186.54,106.376884]
[1736664542192,8.92971867,186.59,186.54,106.376884]
[1736664548321,7.7924,186.68,186.56,250.20660267]
[1736664548501,8.92971867,186.62,186.56,250.20660267]
[1736664548922,8.92971867,186.62,186.56,241.276884]
[1736664549105,20.0,186.65,186.56,106.376884]
[1736664549297,8.92971867,186.6,186.56,106.376884]
[1736664549812,20.0,186.65,186.56,106.376884]
[1736664550121,8.92971867,186.6,186.56,106.376884]
[1736664554614,20.0,186.65,186.56,106.376884]
[1736664554816,8.92971867,186.61,186.56,106.376884]
[1736664559322,8.92971867,186.6,186.56,106.376884]
[1736664559530,8.92971867,186.61,186.56,106.376884]
[1736664562840,28.92971867,186.63,186.58,23.776884]
[1736664563132,20.0,186.63,186.58,23.776884]
[1736664564606,8.92971867,186.63,186.58,23.776884]
[1736664566029,8.92971867,186.62,186.58,23.776884]
[1736664566530,8.92971867,186.62,186.57,106.376884]
[1736664566931,8.92971867,186.61,186.57,106.376884]
[1736664568939,8.92971867,186.62,186.57,106.376884]
[1736664572127,8.92971867,186.61,186.57,106.376884]
[1736664577541,20.0,186.65,186.57,250.20660267]
[1736664577846,28.92971867,186.65,186.59,108.038184]
[1736664580519,8.92971867,186.64,186.59,108.038184]
[1736664583639,8.92971867,186.61,186.59,108.038184]
[1736664584331,8.92971867,186.62,186.59,108.038184]
[1736664584732,8.92971867,186.63,186.59,108.038184]
[1736664589352,8.92971867,186.63,186.59,108.038184]
[1736664593957,20.0,186.68,186.59,108.038184]
[1736664594181,7.774,186.72,186.61,32.70660267]
[1736664594472,8.92971867,186.67,186.61,250.20660267]
[1736664597539,8.92971867,186.67,186.63,23.776884]
[1736664599442,8.92971867,186.67,186.63,106.376884]
[1736664600258,20.0,186.71,186.63,106.376884]
[1736664600562,8.92971867,186.7,186.65,107.885984]
[1736664601563,8.92971867,186.69,186.65,107.885984]
[1736664601859,8.92971867,186.67,186.65,82.6]
[1736664602566,8.92971867,186.66,186.65,82.6]
[1736664603253,8.92971867,186.66,186.61,84.1091]
[1736664603441,8.92971867,186.62,186.61,82.6]
[1736664608471,8.92971867,186.62,186.58,217.5]
[1736664608665,8.92971867,186.61,186.58,82.6]
[1736664609575,20.0,186.63,186.58,82.6]
[1736664609786,8.92971867,186.62,186.58,82.6]
[1736664628493,8.92971867,186.63,186.58,82.6]
[1736664631286,8.92971867,186.62,186.58,82.6]
[1736664632597,8.92971867,186.63,186.58,82.6]
[1736664632787,8.92971867,186.64,186.58,82.6]
[1736664633702,20.0,186.66,186.58,91.52971867]
[1736664633878,20.0,186.66,186.59,32.70660267]
[1736664634071,8.92971867,186.65,186.59,32.70660267]
[1736664637310,20.0,186.66,186.59,32.70660267]
[1736664637605,8.92971867,186.65,186.59,32.70660267]
[1736664638402,8.92971867,186.65,186.59,115.30660267]
[1736664638786,8.92971867,186.64,186.59,106.376884]
[1736664646122,8.92971867,186.69,186.63,8.92971867]
[1736664646405,8.92971867,186.7,186.64,107.18037771]
[1736664646606,8.92971867,186.7,186.64,115.30660267]
[1736664647728,8.92971867,186.71,186.66,23.776884]
[1736664650416,8.92971867,186.7,186.66,106.376884]
[1736664651487,20.0,186.72,186.66,106.376884]
[1736664651694,8.92971867,186.71,186.67,1.5353]
[1736664652210,8.92971867,186.7,186.67,1.5353]
[1736664652586,8.92971867,186.69,186.67,1.5353]
[1736664652794,8.92971867,186.68,186.66,82.6]
[1736664653135,20.0,186.64,186.58,227.45924388]
[1736664653288,8.92971867,186.6,186.58,82.6]
[1736664656806,8.92971867,186.61,186.58,82.6]
[1736664662019,8.92971867,186.6,186.58,82.6]
[1736664663118,8.92971867,186.59,186.58,82.6]
[1736664664118,8.92971867,186.59,186.57,30.0]
[1736664664320,8.92971867,186.58,186.57,30.0]
[1736664669147,8.92971867,186.59,186.57,30.0]
[1736664669326,8.92971867,186.6,186.57,30.0]
[1736664669522,8.92971867,186.61,186.57,112.6]
[1736664673156,8.92971867,186.6,186.57,112.6]
[1736664675535,8.92971867,186.61,186.57,112.6]
[1736664676622,81.9,186.66,186.57,112.6]
[1736664676824,8.92971867,186.61,186.57,112.6]
[1736664679428,8.92971867,186.6,186.57,112.6]
[1736664681441,117.61887468,186.66,186.57,112.6]
[1736664681442,8.92971867,186.59,186.57,112.6]
[1736664682558,8.92971867,186.58,186.57,30.0]
[1736664689375,44.64859335,186.58,186.57,5.98728377]
[1736664689672,49.12859335,186.58,186.57,5.98728377]
[1736664689901,8.92971867,186.51,186.47,2.0]
[1736664691280,8.92971867,186.5,186.47,2.0]
[1736664691639,8.92971867,186.49,186.47,2.0]
[1736664692062,8.92971867,186.5,186.47,2.0]
[1736664692580,8.92971867,186.49,186.47,2.0]